[Event "Early-Titled-Tuesday-Blitz-April-16-2024"]
[Site "Chess.com"]
[Date "2024.04.16"]
[Round "10"]
[White "stolencandy13"]
[Black "Yeritsyaan"]
[Result "0-1"]
[WhiteElo "2557"]
[BlackElo "2661"]
[TimeControl "180+1"]
[EndTime "10:00:32 PDT"]
[Termination "Yeritsyaan won by checkmate"]

1. d4 {[%clk 0:03:00.9]} 1... Nf6 {[%clk 0:02:57.5]} 2. Bf4 {[%clk 0:03:01.4]}
2... e6 {[%clk 0:02:54.2]} 3. e3 {[%clk 0:03:01.7]} 3... b6 {[%clk 0:02:51.9]}
4. Bd3 {[%clk 0:03:00.9]} 4... Bb7 {[%clk 0:02:52.5]} 5. Nf3 {[%clk 0:03:01.3]}
5... d6 {[%clk 0:02:52.4]} 6. c4 {[%clk 0:02:55.6]} 6... Nbd7 {[%clk 0:02:51.8]}
7. Nc3 {[%clk 0:02:55.8]} 7... Be7 {[%clk 0:02:51.1]} 8. O-O {[%clk 0:02:55.8]}
8... Nh5 {[%clk 0:02:50.4]} 9. Bg3 {[%clk 0:02:54.3]} 9... Nxg3 {[%clk
0:02:50.1]} 10. hxg3 {[%clk 0:02:55.2]} 10... O-O {[%clk 0:02:50.3]} 11. Qc2
{[%clk 0:02:55]} 11... h6 {[%clk 0:02:50.4]} 12. Bh7+ {[%clk 0:02:53.1]} 12...
Kh8 {[%clk 0:02:50.5]} 13. Be4 {[%clk 0:02:54]} 13... Qb8 {[%clk 0:02:49.6]} 14.
a4 {[%clk 0:02:44.9]} 14... a5 {[%clk 0:02:38.1]} 15. Bxb7 {[%clk 0:02:40]}
15... Qxb7 {[%clk 0:02:26.6]} 16. Qe4 {[%clk 0:02:40.1]} 16... Qxe4 {[%clk
0:02:25.3]} 17. Nxe4 {[%clk 0:02:40.2]} 17... d5 {[%clk 0:02:08.4]} 18. cxd5
{[%clk 0:02:37.5]} 18... exd5 {[%clk 0:02:09.3]} 19. Nc3 {[%clk 0:02:37.7]}
19... c6 {[%clk 0:02:06.5]} 20. Rac1 {[%clk 0:02:35.5]} 20... Rfc8 {[%clk
0:02:03.4]} 21. Rc2 {[%clk 0:02:34.6]} 21... f6 {[%clk 0:01:46.7]} 22. Rfc1
{[%clk 0:02:34.3]} 22... Rd8 {[%clk 0:01:41.8]} 23. Nh4 {[%clk 0:02:25.1]} 23...
Kh7 {[%clk 0:01:39.1]} 24. Nf5 {[%clk 0:02:21.6]} 24... Bf8 {[%clk 0:01:38.8]}
25. b3 {[%clk 0:02:13.6]} 25... Nb8 {[%clk 0:01:34]} 26. g4 {[%clk 0:01:57.6]}
26... Ba3 {[%clk 0:01:29.2]} 27. Rd1 {[%clk 0:01:54.8]} 27... g6 {[%clk
0:01:23.1]} 28. Ng3 {[%clk 0:01:49.2]} 28... Bd6 {[%clk 0:01:20]} 29. f4 {[%clk
0:01:48.5]} 29... Na6 {[%clk 0:01:18.8]} 30. Na2 {[%clk 0:01:43.3]} 30... Rac8
{[%clk 0:01:15]} 31. Kf2 {[%clk 0:01:39.1]} 31... Nb4 {[%clk 0:01:08.5]} 32.
Nxb4 {[%clk 0:01:35.8]} 32... Bxb4 {[%clk 0:01:09.4]} 33. f5 {[%clk 0:01:31.7]}
33... c5 {[%clk 0:01:04.8]} 34. fxg6+ {[%clk 0:01:25.3]} 34... Kxg6 {[%clk
0:01:05.7]} 35. Nf5 {[%clk 0:01:25.5]} 35... c4 {[%clk 0:01:01]} 36. bxc4 {[%clk
0:01:17.8]} 36... Rxc4 {[%clk 0:00:56.5]} 37. Rxc4 {[%clk 0:01:06.2]} 37... dxc4
{[%clk 0:00:57.4]} 38. d5 {[%clk 0:00:57.9]} 38... h5 {[%clk 0:00:51.6]} 39. e4
{[%clk 0:00:50.6]} 39... hxg4 {[%clk 0:00:51]} 40. Kg3 {[%clk 0:00:49]} 40...
Re8 {[%clk 0:00:50.4]} 41. d6 {[%clk 0:00:43.8]} 41... c3 {[%clk 0:00:45]} 42.
Ne7+ {[%clk 0:00:32.4]} 42... Kg5 {[%clk 0:00:16.1]} 43. Nc6 {[%clk 0:00:18.6]}
43... c2 {[%clk 0:00:11.7]} 44. Rc1 {[%clk 0:00:17.1]} 44... Bxd6+ {[%clk
0:00:12.3]} 45. Kf2 {[%clk 0:00:15.9]} 45... Rxe4 {[%clk 0:00:12]} 46. Rxc2
{[%clk 0:00:16.1]} 46... Rxa4 {[%clk 0:00:09.9]} 47. Nd8 {[%clk 0:00:16.3]}
47... g3+ {[%clk 0:00:09.7]} 48. Kf3 {[%clk 0:00:16.1]} 48... Rf4+ {[%clk
0:00:09.8]} 49. Ke3 {[%clk 0:00:16]} 49... Bc5+ {[%clk 0:00:10.3]} 50. Kd3
{[%clk 0:00:15.6]} 50... Rd4+ {[%clk 0:00:10.9]} 51. Ke3 {[%clk 0:00:13.3]}
51... Rxd8+ {[%clk 0:00:11.8]} 52. Kf3 {[%clk 0:00:14.2]} 52... Rd3+ {[%clk
0:00:11.3]} 53. Ke4 {[%clk 0:00:14.4]} 53... Re3+ {[%clk 0:00:11.9]} 54. Kd5
{[%clk 0:00:14.5]} 54... f5 {[%clk 0:00:12.4]} 55. Rc4 {[%clk 0:00:13.5]} 55...
f4 {[%clk 0:00:10.8]} 56. Rc2 {[%clk 0:00:13.4]} 56... f3 {[%clk 0:00:10.3]} 57.
gxf3 {[%clk 0:00:14.3]} 57... Rxf3 {[%clk 0:00:11.2]} 58. Ke4 {[%clk 0:00:15.2]}
58... Rf2 {[%clk 0:00:11.4]} 59. Rc1 {[%clk 0:00:15]} 59... g2 {[%clk
0:00:11.8]} 60. Rg1 {[%clk 0:00:15.3]} 60... Ra2 {[%clk 0:00:11.5]} 61. Kf3
{[%clk 0:00:15.1]} 61... Bxg1 {[%clk 0:00:11]} 62. Kg3 {[%clk 0:00:15]} 62...
Bc5 {[%clk 0:00:11.3]} 63. Kh3 {[%clk 0:00:15.9]} 63... a4 {[%clk 0:00:10.9]}
64. Kh2 {[%clk 0:00:16]} 64... g1=Q+ {[%clk 0:00:11.4]} 65. Kh3 {[%clk
0:00:15.7]} 65... Rh2# {[%clk 0:00:11.9]} 0-1

[Event "Early-Titled-Tuesday-Blitz-April-16-2024"]
[Site "Chess.com"]
[Date "2024.04.16"]
[Round "10"]
[White "PolandHussars"]
[Black "Smiechu"]
[Result "1/2-1/2"]
[WhiteElo "2587"]
[BlackElo "2389"]
[TimeControl "180+1"]
[EndTime "10:00:33 PDT"]
[Termination "Game drawn by stalemate"]

1. e4 {[%clk 0:03:00.9]} 1... c5 {[%clk 0:02:58.2]} 2. Ne2 {[%clk 0:03:00.9]}
2... g6 {[%clk 0:02:52.4]} 3. g3 {[%clk 0:03:01]} 3... Nc6 {[%clk 0:02:52.1]} 4.
Bg2 {[%clk 0:03:01.5]} 4... Bg7 {[%clk 0:02:52.4]} 5. c3 {[%clk 0:03:01.4]} 5...
d6 {[%clk 0:02:51.8]} 6. d4 {[%clk 0:03:01.6]} 6... cxd4 {[%clk 0:02:52]} 7.
cxd4 {[%clk 0:03:02.5]} 7... e5 {[%clk 0:02:51.1]} 8. Be3 {[%clk 0:03:00]} 8...
Nf6 {[%clk 0:02:48.4]} 9. h3 {[%clk 0:02:57.2]} 9... O-O {[%clk 0:02:47.9]} 10.
Nbc3 {[%clk 0:02:57.1]} 10... Re8 {[%clk 0:02:45.3]} 11. d5 {[%clk 0:02:55.9]}
11... Ne7 {[%clk 0:02:42]} 12. Qb3 {[%clk 0:02:52.4]} 12... Nh5 {[%clk
0:02:28.5]} 13. g4 {[%clk 0:02:46.9]} 13... Nf4 {[%clk 0:02:28.2]} 14. Nxf4
{[%clk 0:02:46.9]} 14... exf4 {[%clk 0:02:28.4]} 15. Bxf4 {[%clk 0:02:47.8]}
15... f5 {[%clk 0:02:26.5]} 16. gxf5 {[%clk 0:02:44.7]} 16... Nxf5 {[%clk
0:02:23.6]} 17. O-O {[%clk 0:02:28.9]} 17... Qh4 {[%clk 0:02:08.1]} 18. Ne2
{[%clk 0:02:17]} 18... Nd4 {[%clk 0:01:53.8]} 19. Nxd4 {[%clk 0:02:08.1]} 19...
Qxf4 {[%clk 0:01:53.3]} 20. Ne2 {[%clk 0:01:59.8]} 20... Qe5 {[%clk 0:01:46.8]}
21. f4 {[%clk 0:01:57.3]} 21... Qxb2 {[%clk 0:01:42.5]} 22. Qxb2 {[%clk
0:01:57.5]} 22... Bxb2 {[%clk 0:01:42.9]} 23. Rab1 {[%clk 0:01:58.1]} 23... Bf6
{[%clk 0:01:41.7]} 24. Rfc1 {[%clk 0:01:55.5]} 24... Re7 {[%clk 0:01:30.6]} 25.
Nc3 {[%clk 0:01:47.6]} 25... Bd4+ {[%clk 0:01:17]} 26. Kh1 {[%clk 0:01:41.9]}
26... Be3 {[%clk 0:01:12.6]} 27. Rf1 {[%clk 0:01:38.9]} 27... b6 {[%clk
0:01:11.3]} 28. e5 {[%clk 0:01:30.8]} 28... Ba6 {[%clk 0:01:04.7]} 29. Rf3
{[%clk 0:01:29.7]} 29... Bc5 {[%clk 0:01:00.6]} 30. e6 {[%clk 0:01:19.2]} 30...
Rf8 {[%clk 0:00:50.2]} 31. Ne4 {[%clk 0:01:04.6]} 31... Rf5 {[%clk 0:00:49.4]}
32. Rd1 {[%clk 0:00:59.9]} 32... Be2 {[%clk 0:00:46.4]} 33. Rdf1 {[%clk
0:00:54]} 33... Bxf3 {[%clk 0:00:45.3]} 34. Bxf3 {[%clk 0:00:53.9]} 34... Kg7
{[%clk 0:00:43.9]} 35. Bg2 {[%clk 0:00:44.3]} 35... Rxd5 {[%clk 0:00:41.3]} 36.
Ng3 {[%clk 0:00:31.3]} 36... Rd3 {[%clk 0:00:39.3]} 37. Kh2 {[%clk 0:00:31.1]}
37... Rxe6 {[%clk 0:00:38.2]} 38. f5 {[%clk 0:00:31.1]} 38... Ree3 {[%clk
0:00:30]} 39. f6+ {[%clk 0:00:27.8]} 39... Kf7 {[%clk 0:00:30.2]} 40. Ne4 {[%clk
0:00:28.4]} 40... h6 {[%clk 0:00:23.1]} 41. h4 {[%clk 0:00:27.8]} 41... Ra3
{[%clk 0:00:16]} 42. Kh1 {[%clk 0:00:23]} 42... Rxa2 {[%clk 0:00:12]} 43. Nxd6+
{[%clk 0:00:19.1]} 43... Bxd6 {[%clk 0:00:08]} 44. Bd5+ {[%clk 0:00:19.1]} 44...
Kf8 {[%clk 0:00:07.5]} 45. Bxa2 {[%clk 0:00:20]} 45... Re4 {[%clk 0:00:05.8]}
46. Bb1 {[%clk 0:00:19.4]} 46... Rf4 {[%clk 0:00:05.8]} 47. Rxf4 {[%clk
0:00:19.5]} 47... Bxf4 {[%clk 0:00:05.8]} 48. Bxg6 {[%clk 0:00:20.4]} 48... a5
{[%clk 0:00:05.1]} 49. Bc2 {[%clk 0:00:19.9]} 49... Kf7 {[%clk 0:00:04.5]} 50.
Ba4 {[%clk 0:00:19.5]} 50... Kxf6 {[%clk 0:00:04.7]} 51. Kg2 {[%clk 0:00:20.4]}
51... Ke5 {[%clk 0:00:05.3]} 52. Kf3 {[%clk 0:00:21]} 52... Bd2 {[%clk
0:00:04.8]} 53. Ke2 {[%clk 0:00:21.3]} 53... Bf4 {[%clk 0:00:05.2]} 54. Kd3
{[%clk 0:00:21.6]} 54... Kd5 {[%clk 0:00:05.4]} 55. Kc3 {[%clk 0:00:20.8]} 55...
Kc5 {[%clk 0:00:05.8]} 56. Kb2 {[%clk 0:00:20.4]} 56... b5 {[%clk 0:00:05.8]}
57. Bd1 {[%clk 0:00:21.3]} 57... Kb4 {[%clk 0:00:05.4]} 58. h5 {[%clk
0:00:22.2]} 58... a4 {[%clk 0:00:05.4]} 59. Ka2 {[%clk 0:00:22.7]} 59... Kc3
{[%clk 0:00:05.2]} 60. Be2 {[%clk 0:00:23.1]} 60... b4 {[%clk 0:00:05.3]} 61.
Bb5 {[%clk 0:00:23.4]} 61... b3+ {[%clk 0:00:04.8]} 62. Kb1 {[%clk 0:00:24.3]}
62... a3 {[%clk 0:00:04.9]} 63. Ka1 {[%clk 0:00:24.6]} 63... a2 {[%clk
0:00:04.8]} 64. Ba4 {[%clk 0:00:25.1]} 64... Kb4 {[%clk 0:00:04.6]} 65. Bxb3
{[%clk 0:00:25.3]} 65... Kxb3 {[%clk 0:00:03.3]} 1/2-1/2

[Event "Early-Titled-Tuesday-Blitz-April-16-2024"]
[Site "Chess.com"]
[Date "2024.04.16"]
[Round "10"]
[White "Msb2"]
[Black "MatthewG-p4p"]
[Result "1/2-1/2"]
[WhiteElo "3018"]
[BlackElo "2871"]
[TimeControl "180+1"]
[EndTime "10:00:35 PDT"]
[Termination "Game drawn by stalemate"]

1. d4 {[%clk 0:03:00.9]} 1... Nf6 {[%clk 0:02:57.1]} 2. c4 {[%clk 0:03:01.2]}
2... c5 {[%clk 0:02:57.9]} 3. d5 {[%clk 0:03:01.6]} 3... e6 {[%clk 0:02:58.7]}
4. Nc3 {[%clk 0:03:02.2]} 4... exd5 {[%clk 0:02:59.5]} 5. cxd5 {[%clk 0:03:03]}
5... d6 {[%clk 0:03:00.4]} 6. e4 {[%clk 0:03:03.7]} 6... g6 {[%clk 0:03:01.3]}
7. h3 {[%clk 0:03:04.4]} 7... Bg7 {[%clk 0:03:01.9]} 8. Nf3 {[%clk 0:03:05.1]}
8... O-O {[%clk 0:03:02.3]} 9. Bd3 {[%clk 0:03:05.7]} 9... Re8 {[%clk
0:03:00.7]} 10. O-O {[%clk 0:03:05.6]} 10... Nbd7 {[%clk 0:03:01.4]} 11. Bf4
{[%clk 0:03:05.5]} 11... c4 {[%clk 0:02:59.5]} 12. Bc2 {[%clk 0:03:05.8]} 12...
Nc5 {[%clk 0:02:59.7]} 13. Nd2 {[%clk 0:03:06.2]} 13... b6 {[%clk 0:02:52.5]}
14. Re1 {[%clk 0:02:47.2]} 14... Ba6 {[%clk 0:02:52.3]} 15. Qf3 {[%clk
0:02:36.7]} 15... Qc7 {[%clk 0:02:28.9]} 16. a4 {[%clk 0:02:29.7]} 16... Nfd7
{[%clk 0:02:26.2]} 17. Qg3 {[%clk 0:02:30.1]} 17... Ne5 {[%clk 0:02:24.9]} 18.
Nf3 {[%clk 0:01:45.6]} 18... Ncd3 {[%clk 0:01:37.9]} 19. Bxd3 {[%clk 0:01:44.9]}
19... Nxd3 {[%clk 0:01:38.4]} 20. Bxd6 {[%clk 0:01:44.7]} 20... Qd7 {[%clk
0:01:38.6]} 21. Re2 {[%clk 0:01:23.4]} 21... Nxb2 {[%clk 0:01:15.7]} 22. Be5
{[%clk 0:01:23]} 22... Nd3 {[%clk 0:01:10.4]} 23. Bxg7 {[%clk 0:01:21.8]} 23...
Kxg7 {[%clk 0:01:11.3]} 24. e5 {[%clk 0:01:09.7]} 24... Bb7 {[%clk 0:01:11.4]}
25. d6 {[%clk 0:01:08.4]} 25... Qf5 {[%clk 0:00:39.9]} 26. Rae1 {[%clk
0:00:08.2]} 26... Bxf3 {[%clk 0:00:30.8]} 27. Qxf3 {[%clk 0:00:06.9]} 27... Qxf3
{[%clk 0:00:31.2]} 28. gxf3 {[%clk 0:00:07.8]} 28... Nxe1 {[%clk 0:00:32]} 29.
Rxe1 {[%clk 0:00:08.7]} 29... Rad8 {[%clk 0:00:32.2]} 30. Re4 {[%clk 0:00:07.8]}
30... f6 {[%clk 0:00:24.9]} 31. f4 {[%clk 0:00:07.7]} 31... g5 {[%clk
0:00:25.6]} 32. Nb5 {[%clk 0:00:04.2]} 32... Kf7 {[%clk 0:00:17]} 33. Nc7 {[%clk
0:00:03.8]} 33... fxe5 {[%clk 0:00:04.8]} 34. Nxe8 {[%clk 0:00:03.8]} 34... Rxe8
{[%clk 0:00:04.7]} 35. fxe5 {[%clk 0:00:04.2]} 35... Ke6 {[%clk 0:00:05.4]} 36.
Rxc4 {[%clk 0:00:04.3]} 36... Kxe5 {[%clk 0:00:05.3]} 37. Rc7 {[%clk 0:00:03.7]}
37... Kxd6 {[%clk 0:00:05]} 38. Rxa7 {[%clk 0:00:04.1]} 38... Re4 {[%clk
0:00:04.7]} 39. Ra6 {[%clk 0:00:04.2]} 39... Kc5 {[%clk 0:00:04.3]} 40. a5
{[%clk 0:00:04.8]} 40... b5 {[%clk 0:00:02.5]} 41. Ra8 {[%clk 0:00:03.7]} 41...
Ra4 {[%clk 0:00:03.1]} 42. Kg2 {[%clk 0:00:03.1]} 42... b4 {[%clk 0:00:03]} 43.
Kf3 {[%clk 0:00:03.7]} 43... b3 {[%clk 0:00:03.5]} 44. Rc8+ {[%clk 0:00:03.4]}
44... Kd6 {[%clk 0:00:04]} 45. Rb8 {[%clk 0:00:03.7]} 45... Rxa5 {[%clk
0:00:04.5]} 46. Rxb3 {[%clk 0:00:03.8]} 46... Ke6 {[%clk 0:00:05.1]} 47. Kg4
{[%clk 0:00:04.1]} 47... Kf6 {[%clk 0:00:05.4]} 48. Rb6+ {[%clk 0:00:04.5]}
48... Kg7 {[%clk 0:00:06]} 49. Kh5 {[%clk 0:00:05.2]} 49... Rf5 {[%clk
0:00:05.8]} 50. Rb7+ {[%clk 0:00:05.8]} 50... Kg8 {[%clk 0:00:06.3]} 51. Rb8+
{[%clk 0:00:03.7]} 51... Kg7 {[%clk 0:00:06.6]} 52. Rb7+ {[%clk 0:00:04.3]}
52... Kg8 {[%clk 0:00:07.3]} 53. Kg4 {[%clk 0:00:04.2]} 53... Rxf2 {[%clk
0:00:07.2]} 54. Kxg5 {[%clk 0:00:04.9]} 54... Rf7 {[%clk 0:00:07.5]} 55. Rxf7
{[%clk 0:00:05.1]} 55... Kxf7 {[%clk 0:00:08.4]} 56. Kh6 {[%clk 0:00:05.9]}
56... Kg8 {[%clk 0:00:09]} 57. h4 {[%clk 0:00:06.8]} 57... Kh8 {[%clk
0:00:09.9]} 58. Kg5 {[%clk 0:00:06.8]} 58... Kg8 {[%clk 0:00:10.8]} 59. Kh5
{[%clk 0:00:07.4]} 59... Kg7 {[%clk 0:00:11.1]} 60. Kg5 {[%clk 0:00:08]} 60...
h6+ {[%clk 0:00:11.7]} 61. Kf5 {[%clk 0:00:08.2]} 61... Kf7 {[%clk 0:00:12.1]}
62. h5 {[%clk 0:00:08.6]} 62... Kg7 {[%clk 0:00:12.4]} 63. Ke6 {[%clk
0:00:09.3]} 63... Kg8 {[%clk 0:00:12.9]} 64. Kf6 {[%clk 0:00:10]} 64... Kh7
{[%clk 0:00:13.7]} 65. Kf7 {[%clk 0:00:10.7]} 65... Kh8 {[%clk 0:00:14.6]} 66.
Kg6 {[%clk 0:00:11.6]} 66... Kg8 {[%clk 0:00:15.4]} 67. Kxh6 {[%clk 0:00:12.5]}
67... Kh8 {[%clk 0:00:16.3]} 68. Kg6 {[%clk 0:00:13.4]} 68... Kg8 {[%clk
0:00:17.1]} 69. h6 {[%clk 0:00:14.3]} 69... Kh8 {[%clk 0:00:18]} 70. h7 {[%clk
0:00:15.2]} 1/2-1/2

[Event "Early-Titled-Tuesday-Blitz-April-16-2024"]
[Site "Chess.com"]
[Date "2024.04.16"]
[Round "10"]
[White "masterofpuppets2"]
[Black "CrushingKings"]
[Result "0-1"]
[WhiteElo "2477"]
[BlackElo "2602"]
[TimeControl "180+1"]
[EndTime "10:00:37 PDT"]
[Termination "CrushingKings won on time"]

1. d4 {[%clk 0:03:00.9]} 1... g6 {[%clk 0:02:59.6]} 2. c4 {[%clk 0:03:01.1]}
2... Bg7 {[%clk 0:02:58.7]} 3. e4 {[%clk 0:03:01.7]} 3... d6 {[%clk 0:02:58.7]}
4. Nc3 {[%clk 0:03:01.6]} 4... Nd7 {[%clk 0:02:58.4]} 5. Be2 {[%clk 0:03:00.6]}
5... e5 {[%clk 0:02:58.7]} 6. d5 {[%clk 0:03:00.7]} 6... h5 {[%clk 0:02:58.3]}
7. h4 {[%clk 0:03:00.6]} 7... a5 {[%clk 0:02:58.1]} 8. Nf3 {[%clk 0:03:00.2]}
8... Bh6 {[%clk 0:02:58.1]} 9. Ng5 {[%clk 0:02:59.7]} 9... Nc5 {[%clk
0:02:57.8]} 10. Qc2 {[%clk 0:02:56.1]} 10... f6 {[%clk 0:02:56.6]} 11. Nf3
{[%clk 0:02:54.5]} 11... Bg4 {[%clk 0:02:54.9]} 12. Bxh6 {[%clk 0:02:46.9]}
12... Nxh6 {[%clk 0:02:55.1]} 13. O-O-O {[%clk 0:02:47.1]} 13... a4 {[%clk
0:02:52.9]} 14. Kb1 {[%clk 0:02:46.9]} 14... Qd7 {[%clk 0:02:41.1]} 15. Ng1
{[%clk 0:02:39.2]} 15... Bxe2 {[%clk 0:02:39]} 16. Ngxe2 {[%clk 0:02:40.1]}
16... f5 {[%clk 0:02:39.2]} 17. f3 {[%clk 0:02:37.6]} 17... O-O-O {[%clk
0:01:40]} 18. Nc1 {[%clk 0:02:34.3]} 18... fxe4 {[%clk 0:01:33.1]} 19. Nxe4
{[%clk 0:02:26.8]} 19... Nxe4 {[%clk 0:01:33.2]} 20. Qxe4 {[%clk 0:02:27.7]}
20... Qf5 {[%clk 0:01:33.3]} 21. Rde1 {[%clk 0:02:16.4]} 21... Qxe4+ {[%clk
0:01:28.9]} 22. Rxe4 {[%clk 0:02:17.3]} 22... Nf5 {[%clk 0:01:29.3]} 23. Ne2
{[%clk 0:02:17.9]} 23... Rdg8 {[%clk 0:01:26.6]} 24. Kc2 {[%clk 0:02:11.1]}
24... Kd7 {[%clk 0:01:19.7]} 25. Kd3 {[%clk 0:01:49.3]} 25... Rh6 {[%clk
0:01:18.8]} 26. Rh3 {[%clk 0:01:48.7]} 26... g5 {[%clk 0:01:11.5]} 27. hxg5
{[%clk 0:01:48.5]} 27... Rxg5 {[%clk 0:01:12.2]} 28. g3 {[%clk 0:01:34.1]} 28...
Rhg6 {[%clk 0:01:10.3]} 29. f4 {[%clk 0:01:08]} 29... exf4 {[%clk 0:00:01.8]}
30. gxf4 {[%clk 0:01:08.9]} 30... Rg2 {[%clk 0:00:01.9]} 31. Rxh5 {[%clk
0:01:09.5]} 31... Ng3 {[%clk 0:00:01.5]} 32. Rh7+ {[%clk 0:01:08.7]} 32... Kd8
{[%clk 0:00:02]} 33. Rh8+ {[%clk 0:00:52.1]} 33... Kd7 {[%clk 0:00:01.9]} 34.
Rh7+ {[%clk 0:00:53]} 34... Kd8 {[%clk 0:00:02.3]} 35. Re3 {[%clk 0:00:10]}
35... Nxe2 {[%clk 0:00:02.1]} 36. Rxe2 {[%clk 0:00:10.9]} 36... R2g3+ {[%clk
0:00:02.5]} 37. Re3 {[%clk 0:00:11.2]} 37... Rg2 {[%clk 0:00:02.3]} 38. f5
{[%clk 0:00:11]} 38... R6g3 {[%clk 0:00:02]} 39. Rxg3 {[%clk 0:00:10.7]} 39...
Rxg3+ {[%clk 0:00:02.9]} 40. Ke4 {[%clk 0:00:11.4]} 40... Rg2 {[%clk 0:00:02.7]}
41. f6 {[%clk 0:00:11.9]} 41... Rf2 {[%clk 0:00:02.8]} 42. Rh8+ {[%clk
0:00:10.5]} 42... Kd7 {[%clk 0:00:03.3]} 43. Rh7+ {[%clk 0:00:11.4]} 43... Kd8
{[%clk 0:00:03.2]} 44. f7 {[%clk 0:00:09.4]} 44... Ke7 {[%clk 0:00:03.6]} 45.
f8=Q+ {[%clk 0:00:09.3]} 45... Kxf8 {[%clk 0:00:04.4]} 46. Rxc7 {[%clk
0:00:09.7]} 46... Rxb2 {[%clk 0:00:05]} 47. Rd7 {[%clk 0:00:06.7]} 47... Rxa2
{[%clk 0:00:05.4]} 48. Rxb7 {[%clk 0:00:06.6]} 48... Rc2 {[%clk 0:00:05.6]} 49.
Kd3 {[%clk 0:00:06.9]} 49... Rc1 {[%clk 0:00:05.8]} 50. Ra7 {[%clk 0:00:07.2]}
50... Ra1 {[%clk 0:00:05.6]} 51. Rd7 {[%clk 0:00:06.6]} 51... a3 {[%clk
0:00:06.2]} 52. Rxd6 {[%clk 0:00:07.1]} 52... a2 {[%clk 0:00:06.8]} 53. Ra6
{[%clk 0:00:01.2]} 53... Rd1+ {[%clk 0:00:06.6]} 54. Ke4 {[%clk 0:00:01.9]}
54... a1=Q {[%clk 0:00:07.2]} 55. Rxa1 {[%clk 0:00:02.3]} 55... Rxa1 {[%clk
0:00:07.9]} 56. d6 {[%clk 0:00:02.9]} 56... Rd1 {[%clk 0:00:06.7]} 57. c5 {[%clk
0:00:03.1]} 57... Ke8 {[%clk 0:00:07.4]} 58. Ke5 {[%clk 0:00:03.6]} 58... Kd7
{[%clk 0:00:07.9]} 59. Kf6 {[%clk 0:00:03.7]} 59... Rd5 {[%clk 0:00:08]} 60. Kf7
{[%clk 0:00:03.7]} 60... Rxc5 {[%clk 0:00:08.3]} 0-1

[Event "Early-Titled-Tuesday-Blitz-April-16-2024"]
[Site "Chess.com"]
[Date "2024.04.16"]
[Round "10"]
[White "C_K_G"]
[Black "NovakRatko"]
[Result "1-0"]
[WhiteElo "2292"]
[BlackElo "2366"]
[TimeControl "180+1"]
[EndTime "10:00:37 PDT"]
[Termination "C_K_G won by checkmate"]

1. e4 {[%clk 0:03:00.9]} 1... d5 {[%clk 0:02:59.7]} 2. exd5 {[%clk 0:03:00.1]}
2... c6 {[%clk 0:02:59.8]} 3. dxc6 {[%clk 0:02:59.7]} 3... Nxc6 {[%clk
0:02:59.4]} 4. Nf3 {[%clk 0:02:58.3]} 4... e5 {[%clk 0:02:58.9]} 5. Bb5 {[%clk
0:02:55.2]} 5... Bd6 {[%clk 0:02:58.2]} 6. Nc3 {[%clk 0:02:53.6]} 6... Ne7
{[%clk 0:02:57]} 7. O-O {[%clk 0:02:51.9]} 7... O-O {[%clk 0:02:56.1]} 8. Re1
{[%clk 0:02:51.6]} 8... Bg4 {[%clk 0:02:51.2]} 9. h3 {[%clk 0:02:50.8]} 9... Bh5
{[%clk 0:02:50.8]} 10. d3 {[%clk 0:02:48.2]} 10... Nd4 {[%clk 0:02:44.2]} 11.
Bc4 {[%clk 0:02:46.2]} 11... Nxf3+ {[%clk 0:02:41.5]} 12. gxf3 {[%clk 0:02:46]}
12... Qd7 {[%clk 0:02:41.5]} 13. Kg2 {[%clk 0:02:44.3]} 13... Ng6 {[%clk
0:02:37.9]} 14. Ne4 {[%clk 0:02:34]} 14... Nh4+ {[%clk 0:02:37.6]} 15. Kg3
{[%clk 0:02:29]} 15... Nxf3 {[%clk 0:02:29.6]} 16. Re3 {[%clk 0:02:19]} 16...
Kh8 {[%clk 0:02:26.4]} 17. Rxf3 {[%clk 0:02:16]} 17... f5 {[%clk 0:02:26.5]} 18.
Nxd6 {[%clk 0:02:11.1]} 18... Qxd6 {[%clk 0:02:26.6]} 19. Qh1 {[%clk 0:01:55.2]}
19... e4+ {[%clk 0:02:13.4]} 20. Rf4 {[%clk 0:01:52.8]} 20... g5 {[%clk
0:02:11.4]} 21. Qe1 {[%clk 0:00:50.6]} 21... h6 {[%clk 0:01:53.7]} 22. Qc3+
{[%clk 0:00:37.9]} 22... Kh7 {[%clk 0:01:53.1]} 23. Qb3 {[%clk 0:00:18.3]} 23...
b5 {[%clk 0:01:21.8]} 24. Bd5 {[%clk 0:00:13.6]} 24... Rad8 {[%clk 0:01:19.5]}
25. dxe4 {[%clk 0:00:14.1]} 25... fxe4 {[%clk 0:00:58.1]} 26. Bxe4+ {[%clk
0:00:13.7]} 26... Bg6 {[%clk 0:00:58.4]} 27. Bxg6+ {[%clk 0:00:13.4]} 27... Kxg6
{[%clk 0:00:56.9]} 28. Qd3+ {[%clk 0:00:13.8]} 28... Kg7 {[%clk 0:00:56]} 29.
Qxd6 {[%clk 0:00:13.2]} 29... gxf4+ {[%clk 0:00:52.7]} 30. Qxf4 {[%clk
0:00:12.4]} 30... Kg8 {[%clk 0:00:51.9]} 31. Qg4+ {[%clk 0:00:11.9]} 31... Kh7
{[%clk 0:00:40.9]} 32. Qe4+ {[%clk 0:00:12.1]} 32... Kg7 {[%clk 0:00:39.8]} 33.
Bf4 {[%clk 0:00:12]} 33... Rde8 {[%clk 0:00:38.9]} 34. Be5+ {[%clk 0:00:12.3]}
34... Kf7 {[%clk 0:00:39.1]} 35. Qf5+ {[%clk 0:00:11.7]} 35... Ke7 {[%clk
0:00:38.8]} 36. Qe4 {[%clk 0:00:11.6]} 36... Kf7 {[%clk 0:00:37.5]} 37. f4
{[%clk 0:00:10.8]} 37... Rg8+ {[%clk 0:00:36.7]} 38. Kh2 {[%clk 0:00:09.9]}
38... Re7 {[%clk 0:00:36.7]} 39. Rg1 {[%clk 0:00:10.2]} 39... Rxg1 {[%clk
0:00:35.6]} 40. Kxg1 {[%clk 0:00:11.1]} 40... Ke8 {[%clk 0:00:36.3]} 41. Qd5
{[%clk 0:00:11]} 41... Rd7 {[%clk 0:00:35.5]} 42. Qe6+ {[%clk 0:00:10.4]} 42...
Re7 {[%clk 0:00:35.6]} 43. Qc8+ {[%clk 0:00:08.7]} 43... Kf7 {[%clk 0:00:35.8]}
44. Bd6 {[%clk 0:00:08.6]} 44... Re2 {[%clk 0:00:30.4]} 45. Qf5+ {[%clk
0:00:08.7]} 45... Ke8 {[%clk 0:00:29.9]} 46. Qf6 {[%clk 0:00:08.1]} 46... Kd7
{[%clk 0:00:28.8]} 47. Bb4 {[%clk 0:00:07.5]} 47... Kc7 {[%clk 0:00:19.3]} 48.
Qd6+ {[%clk 0:00:07]} 48... Kb7 {[%clk 0:00:19.1]} 49. Kf1 {[%clk 0:00:06.9]}
49... Rxc2 {[%clk 0:00:15.9]} 50. Bc5 {[%clk 0:00:05.8]} 50... Rxb2 {[%clk
0:00:04.4]} 51. Qd7+ {[%clk 0:00:06.1]} 51... Kb8 {[%clk 0:00:05]} 52. Qxa7+
{[%clk 0:00:06.8]} 52... Kc8 {[%clk 0:00:05.3]} 53. Qa8+ {[%clk 0:00:07]} 53...
Kd7 {[%clk 0:00:05.7]} 54. Qd5+ {[%clk 0:00:07.5]} 54... Kc8 {[%clk 0:00:06]}
55. Qc6+ {[%clk 0:00:07.5]} 55... Kd8 {[%clk 0:00:06.3]} 56. Qd6+ {[%clk
0:00:07.4]} 56... Ke8 {[%clk 0:00:06.7]} 57. Qe7# {[%clk 0:00:07]} 1-0